bitfinex-derivatives/quotes_ETHF0:USTF0_20250704
["timestamp","ask_amount","ask_price","bid_price","bid_amount"]
[1751672255971,50.25497634,2511.4,2510.9,0.6468]
[1751672256172,2.67497634,2511.3,2510.9,0.6468]
[1751672256476,39.00897634,2511.2,2511.1,0.79626]
[1751672258669,0.79628,2511.1,2511.0,0.79628]
[1751672258973,4.84750568,2511.1,2511.0,0.79629]
[1751672259672,4.05122568,2511.1,2511.0,0.79629]
[1751672260471,4.84748568,2511.1,2511.0,0.79629]
[1751672260877,4.05122568,2511.1,2511.0,0.79629]
[1751672263379,4.84748568,2511.1,2511.0,0.79629]
[1751672264180,3.53056,2511.1,2511.0,0.79629]
[1751672264380,4.84736016,2511.1,2511.0,0.79629]
[1751672265181,4.05110016,2511.1,2510.6,1.99106]
[1751672265479,39.05830016,2511.0,2510.6,1.99106]
[1751672265680,1.4225,2510.9,2510.8,0.79636]
[1751672269787,36.319,2511.0,2510.9,0.79632]
[1751672269984,37.61823772,2511.0,2510.6,1.99103]
[1751672270288,36.301,2511.0,2510.9,0.79632]
[1751672270484,37.61836906,2511.0,2510.9,0.79632]
[1751672271586,38.98466906,2511.0,2510.9,0.79632]
[1751672277188,38.96366906,2511.0,2510.9,0.79632]
[1751672278592,1.31736906,2511.0,2510.9,0.79632]
[1751672278893,37.59736906,2511.0,2510.9,0.79632]
[1751672280194,1.31736906,2511.0,2510.9,0.79632]
[1751672280495,0.7086,2511.4,2511.3,0.7962]
[1751672280693,1.31797091,2511.4,2511.3,0.7962]
[1751672280992,37.59797091,2511.4,2511.3,0.7962]
[1751672282186,36.28,2511.4,2511.3,0.7962]
[1751672289303,36.9914,2511.4,2511.3,0.7962]
[1751672292105,0.7114,2511.4,2511.3,0.7962]
[1751672292305,36.9854,2511.4,2511.3,0.7962]
[1751672293905,0.7114,2511.4,2511.3,0.7962]
[1751672294105,11.241,2511.5,2511.4,0.79617]
[1751672294304,48.82856648,2511.5,2511.4,0.79617]
[1751672294505,47.514,2511.5,2511.4,0.79617]
[1751672294705,36.273,2511.5,2511.4,0.79617]
[1751672297009,37.6512,2511.5,2511.4,0.79617]
[1751672301410,38.96615261,2511.5,2511.4,0.79617]
[1751672303208,38.96315261,2511.5,2511.4,0.79617]
[1751672306009,2.69315261,2511.5,2511.4,0.79617]
[1751672306311,38.96215261,2511.5,2511.4,0.79617]
[1751672306512,2.69315261,2511.5,2511.4,0.79617]
[1751672306811,38.96215261,2511.5,2511.4,0.79617]
[1751672313518,2.69315261,2511.5,2511.4,0.79617]
[1751672313716,38.96015261,2511.5,2511.4,0.79617]
[1751672314419,2.69315261,2511.5,2511.4,0.79617]
[1751672314717,38.95915261,2511.5,2511.4,0.79617]
[1751672316317,2.69315261,2511.5,2511.4,0.79617]
[1751672316517,38.95815261,2511.5,2511.4,0.79617]
[1751672318618,1.31495261,2511.5,2511.4,0.79617]
[1751672318820,37.57895261,2511.5,2511.4,0.79617]
[1751672320419,1.31495261,2511.5,2511.4,0.79617]
[1751672320620,37.57895261,2511.5,2511.4,0.79617]
[1751672323223,37.57795261,2511.5,2511.4,0.79617]
[1751672324924,1.31495261,2511.5,2511.4,0.79617]
[1751672325124,37.57695261,2511.5,2511.4,0.79617]
[1751672326922,1.31495261,2511.5,2511.4,0.79617]
[1751672327118,37.57595261,2511.5,2511.4,0.79617]
[1751672331932,1.31495261,2511.5,2511.4,0.79617]
[1751672345050,1.50303226,2512.2,2512.1,0.79594]
[1751672345352,36.252,2512.2,2512.1,0.79594]
[1751672345943,37.5759,2512.2,2512.1,0.79594]
[1751672346448,48.8079,2512.2,2512.0,0.79596]
[1751672346748,1.3239,2512.1,2511.9,0.79599]
[1751672347045,0.7055,2512.0,2511.9,0.79599]
[1751672347246,1.4091,2512.0,2511.9,0.79599]
[1751672347643,0.79602,2511.9,2511.3,0.7137]
[1751672347849,36.248,2511.8,2511.3,1.9905]
[1751672348039,1.3904,2511.7,2511.3,1.9905]
[1751672348246,0.7055,2511.6,2511.5,0.79613]
[1751672348747,2.0959,2511.6,2511.5,0.79613]
[1751672362359,2.0959,2511.6,2511.2,1.99058]
[1751672362360,36.9456,2511.7,2511.6,0.7961]
[1751672362660,38.24324332,2511.7,2511.6,0.7961]
[1751672364260,39.61474332,2511.7,2511.6,0.7961]
[1751672365557,38.24324332,2511.7,2511.6,0.7961]
[1751672365759,1.29764332,2511.7,2511.6,0.7961]
[1751672365958,2.1294,2512.0,2511.9,0.79601]
[1751672366159,39.66826991,2512.0,2511.9,0.79601]
[1751672366354,3.42726991,2512.0,2511.9,0.79601]
[1751672366661,39.66726991,2512.0,2511.9,0.79601]
[1751672368665,39.66148038,2512.0,2511.9,0.79601]
[1751672376661,39.66148038,2512.0,2511.3,0.6529]
[1751672376862,0.79605,2511.8,2511.6,0.79609]
[1751672377168,39.59558038,2511.7,2511.6,0.79609]
[1751672377359,40.29958038,2511.7,2511.6,0.79609]
[1751672377563,41.09565038,2511.7,2511.5,0.79612]
[1751672377768,2.59868038,2511.6,2511.5,0.79612]
[1751672377967,3.39478038,2511.6,2511.5,0.79612]
[1751672378164,3.39479038,2511.6,2511.5,0.79614]
[1751672378866,2.59868038,2511.6,2511.5,0.79614]
[1751672379068,3.39478038,2511.6,2511.5,0.79614]
[1751672379368,2.59868038,2511.6,2511.5,0.79614]
[1751672380368,50.06068038,2511.6,2511.5,0.79614]
[1751672384462,50.85678038,2511.6,2511.4,0.79617]
[1751672384664,2.62158038,2511.5,2511.4,0.79617]
[1751672384863,3.41773038,2511.5,2511.3,0.79618]
[1751672385072,38.2548,2511.4,2511.3,0.79618]
[1751672386373,39.05097,2511.4,2511.3,0.79618]
[1751672388677,39.05097,2511.4,2511.2,0.79621]
[1751672390683,0.7962,2511.3,2511.1,1.50824]
[1751672390878,36.233,2511.2,2511.1,1.50824]
[1751672401280,0.79623,2511.2,2511.1,0.712]
[1751672401580,36.227,2511.2,2511.1,1.50826]
[1751672406193,37.52036609,2511.2,2511.1,1.50826]
[1751672406695,0.79628,2511.1,2510.7,1.3224]
[1751672406891,1.2932387,2511.0,2510.6,0.6825]
[1751672407094,38.34623,2510.9,2510.7,0.79636]
[1751672407493,2.81046,2510.8,2510.7,0.79636]
[1751672407889,2.0141,2510.8,2510.7,0.79636]
[1751672409895,11.226,2511.0,2510.9,0.7963]
[1751672410094,48.74112557,2511.0,2510.9,0.7963]
[1751672410396,49.53741557,2511.0,2510.9,0.7963]
[1751672410793,48.74112557,2511.0,2510.9,0.7963]
[1751672411394,50.87591557,2511.0,2510.8,0.79634]
[1751672411599,0.649,2510.9,2510.8,0.79634]
[1751672411900,1.44532,2510.9,2510.8,0.79634]
[1751672412094,2.78382,2510.9,2510.8,0.79634]
[1751672412400,2.78382,2510.9,2510.7,0.79637]
[1751672412998,1.9875,2510.9,2510.8,0.79636]
[1751672413200,2.78382,2510.9,2510.8,0.79636]
[1751672413499,0.79636,2510.8,2510.7,0.79637]
[1751672413700,2.84516,2510.8,2510.7,0.79637]
[1751672414504,2.84516,2510.8,2510.6,0.7964]
[1751672414703,37.5794,2510.7,2510.6,0.7964]
[1751672417102,38.37579,2510.7,2510.6,0.7964]
[1751672417502,0.79642,2510.6,2510.5,0.79643]
[1751672417807,2.052,2510.6,2510.5,0.79643]
[1751672420311,2.84844,2510.6,2510.4,0.79646]
[1751672420911,1.4194,2510.5,2510.4,0.79646]
[1751672421104,2.21585,2510.5,2510.4,0.79646]
[1751672421306,1.4194,2510.5,2510.4,0.79646]
[1751672422000,1.4194,2510.5,2509.9,1.9916]
[1751672422207,36.224,2510.4,2510.3,0.79652]
[1751672422604,37.6434,2510.4,2510.3,0.79652]
[1751672423103,39.10658,2510.4,2510.3,0.79652]
[1751672423503,38.3101,2510.4,2510.3,0.79652]
[1751672424207,55.82862535,2510.4,2508.6,11.9271578]
[1751672424406,1.99138,2510.2,2509.1,0.7102]
[1751672424610,0.79669,2509.8,2509.5,0.79677]
[1751672424806,50.2009,2509.7,2509.5,0.79677]
[1751672425006,1.3712,2509.6,2509.5,0.79677]
[1751672427106,1.3712,2509.6,2509.1,0.7102]
[1751672427314,1.3712,2509.6,2509.5,0.79677]
[1751672427810,0.79679,2509.5,2509.2,0.79685]
[1751672428013,37.5499,2509.4,2509.2,0.79685]
[1751672428208,1.3259,2509.4,2509.3,0.79683]
[1751672428404,48.7789,2509.4,2509.3,0.79683]
[1751672429011,48.7789,2509.4,2509.2,0.79685]
[1751672429213,0.6887,2509.3,2509.2,0.79685]
[1751672429407,2.0321,2509.3,2509.2,0.79685]
[1751672432721,2.82894,2509.3,2509.1,0.79688]
[1751672432922,2.0321,2509.3,2509.1,0.79688]
[1751672433118,1.3986,2509.2,2509.1,0.79688]
[1751672441527,1.3986,2509.2,2509.1,0.79688]
[1751672445826,0.6887,2509.3,2509.2,0.79686]
[1751672447029,2.11815,2509.6,2509.4,0.79679]
[1751672447326,48.1823,2509.5,2509.4,0.79679]
[1751672447832,48.97907,2509.5,2509.4,0.79679]
[1751672448128,49.5557,2509.5,2509.4,0.79679]
[1751672448330,50.8467028,2509.5,2509.4,0.79679]
[1751672448533,51.6434728,2509.5,2509.4,0.79679]
[1751672448824,51.6434728,2509.5,2509.3,0.79681]
[1751672449031,0.7968,2509.4,2509.3,0.79681]
[1751672449530,0.7968,2509.4,2509.2,0.79684]
[1751672449931,1.3734,2509.4,2509.3,0.79683]
[1751672450232,2.66571861,2509.4,2509.3,0.79683]
[1751672450434,3.46251861,2509.4,2509.3,0.79683]
[1751672451637,7.66571861,2509.4,2507.1,7.9419978]
[1751672451832,1.9926,2508.7,2507.4,0.26679003]
[1751672452132,111.35818072,2508.6,2507.5,0.83803395]
[1751672452433,0.79726,2508.0,2507.6,1.50695]
[1751672452731,49.13047815,2507.9,2507.5,1.63543395]
[1751672452935,1.29247815,2507.8,2507.5,0.83803395]
[1751672453127,36.621,2507.8,2507.5,0.17683395]
[1751672453333,37.9224,2507.8,2507.5,0.17683395]
[1751672453532,2.09872,2507.8,2507.5,0.17683395]
[1751672453731,47.914,2507.7,2507.5,0.17683395]
[1751672453925,0.79737,2507.6,2507.5,0.17683395]
[1751672454332,2.14727,2507.6,2507.5,0.17683395]
[1751672455632,50.07527,2507.6,2507.5,0.17683395]
[1751672457133,50.07327,2507.6,2507.5,0.17683395]
[1751672458332,50.56405133,2507.6,2506.9,0.79757]
[1751672458636,3.2816305,2507.5,2506.9,0.7976]
[1751672458837,2.6829105,2507.4,2507.0,0.79755]
[1751672459039,37.48049,2507.3,2507.0,0.79755]
[1751672459329,37.48049,2507.3,2506.7,2.0667]
[1751672459330,1.3948,2507.3,2504.7,0.17877718]
[1751672459537,1.99384,2507.1,2505.9,3.32695]
[1751672459731,0.79768,2506.7,2506.3,0.79776]
[1751672459933,48.113,2506.6,2506.3,0.79776]
[1751672460128,48.113,2506.6,2506.4,0.79775]
[1751672460335,36.751,2506.5,2506.4,0.79775]
[1751672461027,36.752,2506.5,2506.4,0.79775]
[1751672461332,36.752,2506.5,2505.9,1.3322]
[1751672461532,0.79784,2506.2,2505.9,1.3322]
[1751672461734,36.776,2506.2,2505.9,1.3322]
[1751672461936,12.788,2506.1,2505.6,1.3589]
[1751672462329,14.7827,2506.1,2505.1,1.3757]
[1751672462538,0.79801,2505.7,2505.1,1.3757]
[1751672462733,36.785,2505.6,2505.5,0.79804]
[1751672462934,48.175,2505.6,2505.5,0.79804]
[1751672463337,0.7016,2506.0,2505.2,1.63941657]
[1751672463637,2.18681,2506.3,2505.9,0.79791]
[1751672463832,11.371,2506.0,2505.9,0.79791]
[1751672464029,36.827,2506.1,2505.8,1.99487]
[1751672464234,11.371,2506.3,2506.1,0.79783]
[1751672464433,36.829,2506.2,2506.1,0.79783]
[1751672465236,0.7016,2506.5,2506.3,0.79776]
[1751672465437,48.194,2506.4,2506.3,0.79776]
[1751672465839,68.794,2506.6,2506.0,0.7172]
[1751672466041,36.821,2506.5,2506.1,1.3719]
[1751672466342,0.6488,2506.8,2506.6,0.79768]
[1751672466538,36.819,2506.7,2506.6,0.79769]
[1751672466739,36.819,2506.7,2506.2,0.6939]
[1751672466939,36.819,2506.7,2506.5,0.79771]
[1751672467444,36.819,2506.7,2504.8,3.99129]
[1751672467642,2.16042,2506.6,2505.6,1.99495]
[1751672467837,0.79773,2506.5,2505.6,1.99495]
[1751672468043,38.2147,2506.4,2506.1,0.79783]
[1751672468451,38.2147,2506.4,2506.2,0.79781]
[1751672468945,39.01247,2506.4,2505.5,1.99509]
[1751672469248,39.01247,2506.4,2506.1,0.79785]
[1751672469249,0.7035,2506.3,2506.1,0.79785]
[1751672469550,2.0943,2506.3,2506.1,0.79785]
[1751672469950,2.0943,2506.3,2505.5,1.99511]
[1751672470252,2.0943,2506.3,2506.2,0.79782]
[1751672470448,0.7035,2506.3,2506.2,0.79782]
[1751672470756,0.79766,2506.7,2506.4,0.79773]
[1751672470953,1.3908,2506.6,2506.5,0.79772]
[1751672471347,49.5958,2506.6,2506.5,0.79772]
[1751672471548,49.5958,2506.6,2506.4,0.79773]
[1751672471747,49.5958,2506.6,2506.1,0.7017]
[1751672472052,12.7648,2506.6,2506.5,0.79772]
[1751672472253,1.3908,2506.6,2506.5,0.79772]
[1751672472648,49.5868,2506.6,2506.5,0.79772]
[1751672472952,1.3908,2506.6,2506.5,0.79772]
[1751672473153,49.5828,2506.6,2506.5,0.79772]
[1751672473355,1.3908,2506.6,2506.5,0.79772]
[1751672473652,49.5828,2506.6,2506.4,0.79773]
[1751672473851,49.5828,2506.6,2506.5,0.79772]
[1751672474052,49.5828,2506.6,2506.1,0.7017]
[1751672474353,36.818,2506.5,2506.4,0.79774]
[1751672475051,11.374,2506.6,2506.5,0.79771]
[1751672475351,48.183,2506.6,2506.5,0.79771]
[1751672475753,48.183,2506.6,2506.1,0.7017]
[1751672475942,2.85614,2506.8,2506.1,0.7017]
[1751672475943,2.0585,2506.8,2506.1,0.7017]
[1751672476147,48.177,2506.7,2506.1,2.69626]
[1751672476354,48.177,2506.7,2506.5,0.7977]
[1751672476544,48.177,2506.7,2506.6,0.79769]
[1751672477048,48.177,2506.7,2506.1,0.7017]
[1751672477249,0.79787,2506.1,2505.2,2.26130373]
[1751672477455,36.801,2506.0,2505.9,0.79791]
[1751672477655,0.79778,2506.4,2506.1,0.79783]
[1751672477953,1.3682,2506.3,2506.1,0.79783]
[1751672478153,1.3682,2506.3,2506.2,0.79782]
[1751672478355,38.1772,2506.3,2506.2,0.79782]
[1751672478656,36.809,2506.3,2506.2,0.79782]
[1751672478852,0.71,2506.6,2506.0,1.99471]
[1751672479054,0.71,2506.6,2506.5,0.79772]
[1751672479255,38.1037287,2506.6,2506.5,0.79772]
[1751672479752,1.2897287,2506.6,2506.5,0.79772]
[1751672479955,1.2897287,2506.6,2506.3,0.6806]
[1751672479956,36.827,2506.8,2506.7,0.79766]
[1751672480155,38.11832576,2506.8,2506.7,0.79766]
[1751672484059,1.29132576,2506.8,2506.7,0.79766]
[1751672484451,6.29132576,2506.8,2505.3,1.3866]
[1751672484656,0.79777,2506.4,2506.0,0.79785]
[1751672484857,41.11712576,2506.3,2505.9,0.79789]
[1751672485059,2.08915576,2506.2,2505.9,0.79789]
[1751672485360,0.79791,2506.0,2505.7,0.79796]
[1751672485556,1.3909,2505.9,2505.7,0.79796]
[1751672485959,2.18881,2505.9,2505.6,0.79799]
[1751672486157,2.0955277,2505.8,2505.4,0.79805]
[1751672486363,2.18889,2505.7,2505.3,1.3866]
[1751672486658,1.3909,2505.7,2505.3,0.7119]
[1751672486858,2.1889,2505.7,2505.4,0.79807]
[1751672487654,1.3909,2505.7,2505.4,0.79807]
[1751672488059,1.3909,2505.7,2505.5,0.79804]
[1751672488262,2.18888,2505.7,2505.4,0.79807]
[1751672488757,1.3909,2505.7,2505.1,1.99543]
[1751672488958,1.3909,2505.7,2505.5,0.79802]
[1751672489461,1.3909,2505.7,2505.1,3.40893]
[1751672489659,1.3909,2505.7,2505.5,0.79803]
[1751672489858,1.3909,2505.7,2505.6,0.79801]
[1751672490060,2.6882853,2505.7,2505.6,0.79801]
[1751672491161,1.2973853,2505.7,2505.6,0.79801]
[1751672492758,37.009,2505.9,2505.8,0.79795]
[1751672492960,1.29781756,2505.9,2505.8,0.79795]
[1751672494864,0.6738,2506.2,2506.1,0.79785]
[1751672495163,37.6738,2506.2,2506.1,0.79785]
[1751672495559,1.99495,2505.8,2504.5,1.99585]
[1751672495757,49.1424,2505.7,2504.5,1.99589]
[1751672495963,39.41590257,2505.6,2504.3,2.25639167]
[1751672496163,0.79819,2505.1,2504.7,0.97704718]
[1751672496366,1.997,2505.0,2504.7,0.17877718]
[1751672496764,37.285,2504.9,2504.7,0.17877718]
[1751672497064,38.6607,2504.8,2504.7,0.17877718]
[1751672497266,39.45896,2504.8,2504.7,0.17877718]
[1751672497468,50.1287,2504.8,2504.7,0.17877718]
[1751672497664,1.3767,2504.8,2504.7,0.97707718]
[1751672497866,0.6734,2505.0,2504.9,0.79823]
[1751672498067,37.9654,2505.0,2504.9,0.79823]
[1751672498569,0.6734,2505.0,2504.9,0.79823]
[1751672498771,12.8497,2505.2,2505.1,0.79817]
[1751672498970,50.1407,2505.2,2505.1,0.79817]
[1751672500071,50.1387,2505.2,2505.1,0.79817]
[1751672500470,1.3767,2505.2,2505.1,0.79817]
[1751672500671,1.4097,2505.6,2505.3,0.79809]
[1751672500866,50.1731,2505.5,2505.1,0.79815]
[1751672501071,50.1731,2505.5,2505.2,0.79813]
[1751672501467,50.1731,2505.5,2505.2,0.79812]
[1751672502571,50.1731,2505.5,2505.3,0.7981]
[1751672503772,50.1731,2505.5,2505.4,0.79807]
[1751672504672,50.1541,2505.5,2505.4,0.79807]
[1751672504870,1.4221,2505.5,2505.4,0.79807]
[1751672505171,50.1321,2505.5,2505.4,0.79807]
[1751672505370,50.1271,2505.5,2505.4,0.79807]
[1751672507271,50.1271,2505.5,2505.3,0.79808]
[1751672507570,50.1271,2505.5,2504.9,1.99559]
[1751672507773,50.1271,2505.5,2505.4,0.79807]
[1751672507973,0.7096,2505.6,2505.5,0.79804]
[1751672508175,37.9126,2505.6,2505.5,0.79804]
[1751672510671,37.203,2505.6,2505.5,0.79804]
[1751672511471,57.461,2505.7,2505.6,0.79801]
[1751672511671,94.651,2505.7,2505.6,0.79801]
[1751672512973,94.623,2505.7,2505.6,0.79801]
[1751672513276,57.461,2505.7,2505.6,0.79801]
[1751672513471,94.623,2505.7,2505.6,0.79801]
[1751672514177,57.461,2505.7,2505.6,0.79801]
[1751672514377,94.619,2505.7,2505.6,0.79801]
[1751672514578,57.461,2505.7,2505.6,0.79801]
[1751672514779,94.61,2505.7,2505.6,0.79801]
[1751672515179,0.7052,2505.9,2505.8,0.79795]
[1751672515576,37.8452,2505.9,2505.8,0.79795]
[1751672516176,37.8392,2505.9,2505.8,0.79795]
[1751672516682,0.7052,2505.9,2505.8,0.79795]
[1751672516978,37.8342,2505.9,2505.8,0.79795]
[1751672517382,0.7052,2505.9,2505.8,0.79795]
[1751672517582,37.8352,2505.9,2505.8,0.79795]
[1751672518483,44.11489571,2505.9,2505.2,0.79811]
[1751672518684,0.79802,2505.6,2505.2,0.79811]
[1751672518984,39.41444,2505.5,2505.1,0.79815]
[1751672519184,0.6791,2505.4,2505.1,0.79815]
[1751672519384,38.6134,2505.3,2505.1,0.79815]
[1751672519684,38.6134,2505.3,2505.2,0.79814]
[1751672520584,38.6134,2505.3,2505.1,0.79815]
[1751672521180,38.6134,2505.3,2505.2,0.79814]
[1751672521486,38.6134,2505.3,2505.1,0.79816]
[1751672521785,38.6134,2505.3,2505.2,0.79814]
[1751672522284,38.6134,2505.3,2505.1,0.79815]
[1751672522788,38.6134,2505.3,2504.8,0.7139]
[1751672523087,38.6134,2505.3,2505.1,0.79814]
[1751672523787,38.6134,2505.3,2505.2,0.79814]
[1751672524890,38.6134,2505.3,2505.1,0.79815]
[1751672525191,0.6791,2505.4,2505.3,0.7981]
[1751672525393,37.8131,2505.4,2505.3,0.7981]
[1751672527189,39.0950678,2505.4,2505.3,0.7981]
[1751672528093,1.2819678,2505.4,2505.3,0.7981]
[1751672528299,37.112,2505.4,2505.3,0.7981]
[1751672528793,2.0379,2505.7,2505.5,0.79803]
[1751672528991,37.108,2505.6,2505.5,0.79803]
[1751672529190,38.4606,2505.6,2505.5,0.79803]
[1751672530390,38.4506,2505.6,2505.5,0.79803]
[1751672532995,38.4216,2505.6,2505.5,0.79803]
[1751672533194,37.069,2505.6,2505.5,0.79803]
[1751672533497,0.6973,2505.7,2505.6,0.79801]
[1751672533697,39.0407805,2505.7,2505.6,0.79801]
[1751672533900,1.9797805,2505.7,2505.6,0.79801]
[1751672534091,39.0327805,2505.7,2505.6,0.79801]
[1751672534292,1.3564,2506.0,2505.8,0.79792]
[1751672534492,39.13356104,2505.9,2505.6,0.79798]
[1751672534694,1.3564,2505.8,2505.7,0.79798]
[1751672543903,2.15435,2505.8,2505.7,0.79798]
[1751672544103,1.3564,2505.8,2505.7,0.79798]
[1751672545306,2.15435,2505.8,2505.7,0.79798]
[1751672545506,1.3564,2505.8,2505.7,0.79798]
[1751672546408,2.15435,2505.8,2505.7,0.79798]
[1751672546905,1.3564,2505.8,2505.7,0.79798]
[1751672548908,2.15435,2505.8,2505.7,0.79798]
[1751672550607,1.3564,2505.8,2505.6,0.79799]
[1751672550808,2.15436,2505.8,2505.6,0.79799]
[1751672551008,0.79798,2505.7,2505.5,0.79802]
[1751672551209,1.3417,2505.7,2505.2,0.6948]
[1751672551409,0.6594,2505.6,2505.5,0.79803]
[1751672553311,2.0011,2505.6,2505.5,0.79803]
[1751672554511,2.0011,2505.6,2505.2,0.6948]
[1751672554714,2.79913,2505.6,2505.3,0.79809]
[1751672554908,36.903,2505.5,2505.3,0.79808]
[1751672555108,0.79808,2505.4,2505.2,0.79812]
[1751672555309,1.3881,2505.3,2505.2,0.79812]
[1751672556113,37.5521,2505.5,2505.3,0.79808]
[1751672556412,39.73824,2505.5,2505.3,0.79808]
[1751672556612,38.9402,2505.5,2505.3,0.79808]
[1751672558613,38.2911,2505.5,2505.1,0.6491]
[1751672558810,38.2911,2505.5,2505.4,0.79807]
[1751672559011,38.2911,2505.5,2505.3,0.79808]
[1751672559212,1.3881,2505.5,2505.4,0.79807]
[1751672559511,38.2711,2505.5,2505.4,0.79807]
[1751672560414,38.2711,2505.5,2505.3,0.79808]
[1751672560617,38.2711,2505.5,2505.1,0.6491]
[1751672560817,38.2711,2505.5,2505.4,0.79807]
[1751672562518,38.2711,2505.5,2505.3,0.79808]
[1751672563018,38.2711,2505.5,2505.4,0.79807]
[1751672563317,38.2281,2505.5,2505.1,0.6491]
[1751672563918,38.2281,2505.5,2505.3,0.79808]
[1751672564119,39.02615,2505.5,2505.2,0.79814]
[1751672564515,39.02615,2505.5,2505.1,0.6491]
[1751672564516,39.02615,2505.5,2505.3,0.7981]
[1751672565420,39.02615,2505.5,2505.2,0.79812]
[1751672565619,39.02615,2505.5,2505.3,0.7981]
[1751672566722,38.2281,2505.5,2505.3,0.7981]
[1751672566921,39.02614,2505.5,2505.3,0.7981]
[1751672567122,38.2281,2505.5,2505.3,0.7981]
[1751672568125,39.02615,2505.5,2505.3,0.7981]
[1751672568923,2.18615,2505.5,2505.3,0.7981]
[1751672569125,1.3881,2505.5,2505.4,0.79807]
[1751672569424,38.1841,2505.5,2505.4,0.79807]
[1751672572929,38.1841,2505.5,2505.1,0.6491]
[1751672573130,38.98214,2505.5,2505.3,0.79808]
[1751672573532,38.1841,2505.5,2505.3,0.79808]
[1751672573727,38.1841,2505.5,2505.4,0.79807]
[1751672575433,38.1841,2505.5,2505.3,0.79808]
[1751672576532,38.1841,2505.5,2505.4,0.79807]
[1751672577831,0.79813,2505.3,2505.1,0.6491]
[1751672578134,0.79808,2505.4,2505.1,1.44725]
[1751672578329,0.7123,2505.2,2505.1,1.44725]
[1751672581028,36.722,2505.7,2505.1,7.64449]
[1751672581226,1.28427138,2505.6,2505.5,0.79804]
[1751672581428,0.6607,2505.8,2505.5,0.79804]
[1751672581429,59.83490257,2506.5,2505.7,1.99493]
[1751672581726,38.67285994,2506.4,2506.2,0.7978]
[1751672581930,1.28415994,2506.3,2506.2,0.7978]
[1751672582229,1.46885,2506.8,2506.0,1.99471]
[1751672582437,1.94497105,2506.7,2506.6,0.79769]
[1751672582639,38.67197105,2506.7,2506.5,0.7977]
[1751672582933,37.3877,2506.7,2506.6,0.79769]
[1751672583133,1.94367579,2506.7,2506.6,0.79769]
[1751672583329,1.94367579,2506.7,2506.2,0.6822]
[1751672583536,0.6607,2506.7,2506.3,1.4311]
[1751672583836,0.6607,2506.7,2506.6,0.79769]
[1751672584136,1.94198781,2506.7,2506.6,0.79769]
[1751672584441,0.6607,2506.7,2506.5,0.7977]
[1751672584731,0.6607,2506.7,2506.6,0.79769]
[1751672585331,0.6607,2506.7,2506.5,0.7977]
[1751672586037,0.6607,2506.7,2506.6,0.79769]
[1751672586637,0.6607,2506.7,2506.5,0.7977]
[1751672586938,0.6607,2506.7,2506.3,2.03340796]
[1751672586939,0.6607,2506.7,2506.6,0.79769]
[1751672587334,0.6607,2506.7,2506.5,0.79771]
[1751672588335,36.701,2507.0,2506.4,0.682]
[1751672588536,38.19078,2507.0,2506.6,0.79767]
[1751672588736,1.4184,2506.9,2506.6,0.79767]
[1751672589136,1.4184,2506.9,2506.4,0.682]
[1751672589137,1.4184,2506.9,2506.7,0.79766]
[1751672590034,1.4184,2506.9,2506.4,0.682]
[1751672590035,1.4184,2506.9,2506.8,0.79763]
[1751672597448,2.216,2506.9,2506.8,0.79763]
[1751672597844,1.4184,2506.9,2506.8,0.79763]
[1751672599150,2.216,2506.9,2506.8,0.79763]
[1751672599347,2.216,2506.9,2506.7,0.79764]
[1751672599554,0.6922,2507.0,2506.6,0.6694]
[1751672599754,0.6922,2507.0,2506.9,0.7976]
[1751672605154,0.6922,2507.0,2506.6,0.6694]
[1751672605459,0.6922,2507.0,2506.9,0.7976]
[1751672606159,2.0101,2507.0,2506.9,0.7976]
[1751672608860,0.79772,2506.5,2506.4,0.682]
[1751672609051,48.011,2506.5,2505.6,2.00752249]
[1751672609256,0.79779,2506.3,2505.9,0.79788]
[1751672609560,1.3618,2506.2,2505.9,0.79788]
[1751672609757,37.47785,2506.1,2505.9,0.79788]
[1751672610660,37.47785,2506.1,2505.8,0.79793]
[1751672612160,38.17095,2506.1,2505.8,0.79793]
[1751672612963,1.3203,2506.0,2505.8,0.79793]
[1751672613263,1.3203,2506.0,2505.8,0.79794]
[1751672615160,0.79794,2505.9,2505.6,2.1961]
[1751672615464,1.3203,2506.0,2505.7,0.79797]
[1751672615465,2.11819,2506.0,2505.7,0.79797]
[1751672617065,1.3203,2506.0,2505.8,0.79794]
[1751672617266,2.11818,2506.0,2505.8,0.79794]
[1751672617866,1.3203,2506.0,2505.8,0.79794]
[1751672618063,2.11819,2506.0,2505.8,0.79794]
[1751672618475,1.3203,2506.0,2505.8,0.79794]
[1751672618662,2.11819,2506.0,2505.8,0.79794]
[1751672620768,1.3203,2506.0,2505.6,0.6815]
[1751672620965,0.79793,2505.9,2505.6,1.47949]
[1751672621167,1.3303,2505.8,2505.7,0.79798]
[1751672625675,2.12825,2505.8,2505.6,1.47949]
[1751672625877,1.3303,2505.8,2505.6,1.47949]
[1751672631484,2.12825,2505.8,2505.6,1.47949]
[1751672633785,1.3303,2505.8,2505.6,1.47949]
[1751672635488,2.12825,2505.8,2505.6,1.47949]
[1751672636183,1.3303,2505.8,2505.6,1.47949]
[1751672636391,0.7981,2505.4,2505.1,0.79815]
[1751672636684,0.7981,2505.4,2504.8,3.36174]
[1751672636685,36.555,2505.4,2504.8,3.36174]
[1751672636877,0.6939,2505.3,2505.1,0.79815]
[1751672637082,2.0226,2505.3,2505.2,0.79814]
[1751672637282,2.0226,2505.3,2505.1,0.79814]
[1751672638888,2.0226,2505.3,2505.2,0.79814]